fUSD/lending_fUSD_20240801
["ID","MTS","AMOUNT","RATE_DAILY","PERIOD"]
[333773599,1722477038846,-1000.00000014,0.00011,2]
[333773601,1722477038857,-1936.04088029,0.00011,2]
[333773603,1722477038869,-500.0,0.00011,2]
[333773605,1722477038881,-446.9083603,0.00011,2]
[333773621,1722477039025,-155.4,0.0001089,2]
[333773623,1722477039034,-109.61680098,0.00011,2]
[333773625,1722477039045,-3222.85310676,0.00011,2]
[333773627,1722477039056,-1938.33811194,0.00011,2]
[333773630,1722477039067,-52219.04592416,0.00011,2]
[333773632,1722477039080,-2312.36394941,0.00011,2]
[333773634,1722477039091,-743.53478048,0.00011,2]
[333773636,1722477039103,-1710.00000005,0.00011,2]
[333773638,1722477039114,-495.89627834,0.00011,2]
[333773640,1722477039124,-2565.0,0.00011,2]
[333773736,1722477040123,-360.0,0.00010215,2]
[333773737,1722477040133,-155.4,0.0001089,2]
[333773738,1722477040142,-155.4,0.0001089,2]
[333773739,1722477040152,-155.4,0.0001089,2]
[333773740,1722477040162,-155.4,0.0001089,2]
[333773741,1722477040171,-155.4,0.00010949,2]
[333773742,1722477040180,-155.4,0.0001095,2]
[333773743,1722477040189,-6971.46627251,0.00011,2]
[333773744,1722477040201,-4710.83907877,0.00011,2]
[333773745,1722477040211,-4609.19369259,0.00011,2]
[333773746,1722477040384,-155.4,0.0001095,2]
[333773747,1722477040393,-146.94709844,0.00011,2]
[333773748,1722477040407,-565.524575,0.00011,2]
[333773749,1722477040420,-637.17304018,0.00011,2]
[333773750,1722477040431,-368.04046622,0.00011,2]
[333773751,1722477040443,-92848.29489961,0.00011,2]
[333773752,1722477040454,-1156.2,0.00011,2]
[333773753,1722477040479,-1396.10804027,0.00011,2]
[333773754,1722477040491,-1221.18105363,0.00011,2]
[333773755,1722477040503,-1146.80056203,0.00011,2]
[333773756,1722477040515,-4570.504939,0.00011,2]
[333773757,1722477040529,-473.28023069,0.00011,2]
[333773758,1722477040540,-1917.30000001,0.00011,2]
[333773765,1722477040682,-333.85476669,0.00011,2]
[333773767,1722477040694,-3304.77660869,0.00011,2]
[333773769,1722477040706,-5521.87,0.00011,2]
[333773771,1722477040718,-1023.46152482,0.00011,2]
[333773774,1722477040729,-2109.97814077,0.00011,2]
[333773776,1722477040739,-5441.758176,0.00011,2]
[333773778,1722477040750,-3220.35,0.00011,2]
[333773780,1722477040761,-154218.46580068,0.00011,2]
[333773782,1722477040773,-455.28848318,0.00011,2]
[333773785,1722477040784,-9643.92039372,0.00011,2]
[333773789,1722477040795,-339.86,0.00011,2]
[333773791,1722477040806,-666.66,0.00011,2]
[333773793,1722477040817,-169390.96323234,0.00011,2]
[333773799,1722477040864,-155.4,0.0001095,2]
[333773801,1722477040873,-514.06,0.00011,2]
[333773803,1722477040885,-1806.22999998,0.00011,2]
[333773805,1722477040896,-517.0,0.00011,2]
[333774081,1722477043481,-155.4,0.0001095,2]
[333774082,1722477043491,-155.4,0.0001095,2]
[333774083,1722477043500,-101.3753019,0.0001095,2]
[333774084,1722477043511,-54.0246981,0.0001095,2]
[333774085,1722477043523,-155.4,0.0001095,2]
[333774086,1722477043534,-155.4,0.0001095,2]
[333774087,1722477043546,-155.4,0.00010982,2]
[333774088,1722477043556,-85.48342455,0.00010982,2]
[333774090,1722477043568,-69.91657545,0.00010982,2]
[333774092,1722477043577,-155.4,0.00010988,2]
[333774094,1722477043587,-122.7242179,0.00010988,2]
[333774097,1722477043600,-32.6757821,0.00010988,2]
[333774099,1722477043609,-155.4,0.00010988,2]
[333774100,1722477043618,-69.01320554,0.00011,2]
[333774102,1722477043629,-3969.10901698,0.00011,2]
[333774105,1722477043640,-3462.24620921,0.00011,2]
[333774107,1722477043652,-616.45468681,0.00011,2]
[333774109,1722477043663,-287.55850993,0.00011,2]
[333774111,1722477043674,-518.97617547,0.00011,2]
[333774118,1722477043730,-155.4,0.00010989,2]
[333774120,1722477043740,-2990.52623713,0.00011,2]
[333774122,1722477043751,-4445.23740939,0.00011,2]
[333774124,1722477043763,-1214.41317811,0.00011,2]
[333774127,1722477043777,-2340.0,0.00011,2]
[333774129,1722477043791,-485.29999995,0.00011,2]
[333774131,1722477043802,-527.12247624,0.00011,2]
[333774133,1722477043814,-668.90836217,0.00011,2]
[333774136,1722477043825,-295.36802689,0.00011,2]
[333774138,1722477043837,-5249.49441577,0.00011,2]
[333774140,1722477043848,-432.89653833,0.00011,2]
[333774142,1722477043860,-499.44131326,0.00011,2]
[333774144,1722477043871,-772.1299993,0.00011,2]
[333774146,1722477043883,-716.30002,0.00011,2]
[333774149,1722477043894,-458587.02241247,0.00011,2]
[333774151,1722477043905,-541.55038011,0.00011,2]
[333774153,1722477043917,-697.68583,0.00011,2]
[333774154,1722477043928,-720.02828238,0.00011,2]
[333774155,1722477043938,-434.855895,0.00011,2]
[333774156,1722477043949,-9167.33825078,0.00011,2]
[333774157,1722477043960,-916.74900749,0.00011,2]
[333774158,1722477043972,-515.811067,0.00011,2]
[333774159,1722477043983,-475.33246739,0.00011,2]
[333774160,1722477043994,-565.99524606,0.00011,2]
[333774161,1722477044006,-373.79015995,0.00011,2]
[333774162,1722477044239,-441.627567,9.688e-05,2]
[333774164,1722477044249,-155.4,0.00010989,2]
[333774166,1722477044258,-240.90710086,0.00011,2]
[333774168,1722477044274,-895.78987325,0.00011,2]
[333774169,1722477044287,-2412.76781899,0.00011,2]
[333774192,1722477047036,-155.4,0.00010989,2]
[333774194,1722477047046,-155.4,0.0001099,2]
[333774196,1722477047055,-155.4,0.0001099,2]
[333774198,1722477047065,-145.94343878,0.0001099,2]
[333774200,1722477047077,-9.45656122,0.0001099,2]
[333774202,1722477047086,-155.4,0.0001099,2]
[333774204,1722477047096,-155.4,0.0001099,2]
[333774206,1722477047106,-155.4,0.0001099,2]
[333774208,1722477047115,-155.4,0.0001099,2]
[333774209,1722477047125,-155.4,0.0001099,2]
[333774210,1722477047134,-155.4,0.0001099,2]
[333774211,1722477047143,-155.4,0.0001099,2]
[333774212,1722477047152,-155.4,0.0001099,2]
[333774213,1722477047161,-331.23343878,0.00010997,2]
[333774214,1722477047172,-436.40202434,0.00010997,2]
[333774215,1722477047183,-308.31534995,0.00010997,2]
[333774216,1722477047192,-26.44965005,0.00010999,2]
[333774217,1722477047203,-2951.83055752,0.00010999,2]
[333774218,1722477047213,-741.0,0.00011,2]
[333774219,1722477047222,-4517.95779241,0.00011,2]
[333774220,1722477047233,-1904.96994,0.00011,2]
[333774221,1722477047244,-643.8,0.00011,2]
[333774222,1722477047255,-268.25,0.00011,2]
[333774223,1722477047266,-354.959869,0.00011,2]
[333774224,1722477047277,-3207.21499114,0.00011,2]
[333774225,1722477047287,-2620.40391971,0.00011,2]
[333774226,1722477047299,-3219.25,0.00011,2]
[333774227,1722477047336,-1110.1255479,0.00011,2]
[333774228,1722477047347,-1137.60890103,0.00011,2]
[333774229,1722477047359,-547.44,0.00011,2]
[333774230,1722477047529,-150.058,0.0001096,2]
[333774231,1722477047538,-155.4,0.0001099,2]
[333774232,1722477047547,-527.71350627,0.00011,2]
[333774233,1722477047561,-1300.0,0.00011,2]
[333774234,1722477047572,-1914.47651,0.00011,2]
[333774235,1722477047583,-11262.867222,0.00011,2]
[333774236,1722477047593,-1453.49,0.00011,2]
[333774237,1722477047604,-801.12500001,0.00011,2]
[333774238,1722477047615,-8843.92475302,0.00011,2]
[333774239,1722477047626,-324304.58850812,0.00011,2]
[333774240,1722477047636,-1128.75496496,0.00011,2]
[333774241,1722477047647,-793.6000076,0.00011,2]
[333774242,1722477047658,-8046.26506283,0.00011,2]
[333774243,1722477047669,-670.3128516,0.00011,2]
[333774244,1722477047681,-33209.88757865,0.00011,2]
[333774245,1722477047691,-4457.95720079,0.00011,2]
[333774246,1722477047703,-1031.57713695,0.00011,2]
[333774247,1722477047714,-299.07844765,0.00011,2]
[333774248,1722477047725,-473293.98910161,0.00011,2]
[333774249,1722477047736,-58113.71480595,0.00011,2]
[333774250,1722477047846,-155.4,0.0001099,2]
[333774251,1722477047855,-155.4,0.0001099,2]
[333774252,1722477047865,-120494.94373891,0.00011,2]
[333774253,1722477071460,500.0,0.00027,120]
[333774254,1722477071939,500.0,0.00027,120]
[333774255,1722477072364,500.0,0.00027,120]
[333774256,1722477073139,500.0,0.00027,120]
[333774257,1722477073425,500.0,0.00027,120]
[333774258,1722477073748,500.0,0.00027,120]
[333774259,1722477074271,500.0,0.00027,120]
[333774260,1722477074762,500.0,0.00027,120]
[333774261,1722477075293,500.0,0.00027,120]
[333774262,1722477075764,500.0,0.00027,120]
[333774263,1722477076352,500.0,0.00027,120]
[333774264,1722477076855,500.0,0.00027,120]
[333774265,1722477077495,500.0,0.00027,120]
[333774266,1722477077874,500.0,0.00027,120]
[333774267,1722477078306,500.0,0.00027,120]
[333774268,1722477078730,642.91673968,0.00027,120]
[333774269,1722477114157,1597.33889372,0.00025,60]
[333774270,1722477115848,10000.0,0.00027,120]
[333774271,1722477119629,10000.0,0.00027,120]
[333774272,1722477124744,10000.0,0.00027,120]
[333774273,1722477132549,10000.0,0.00027,120]
[333774277,1722477171711,4893.0,0.00027,120]
[333774278,1722477193405,0.43235767,0.0001789,120]
[333774279,1722477193432,190.56764233,0.0001789,120]
[333774280,1722477193796,191.0,0.0001788,120]
[333774281,1722477194298,191.0,0.0001787,120]
[333774282,1722477194852,191.0,0.0001789,120]
[333774283,1722477195448,191.0,0.0001788,120]
[333774284,1722477195933,191.0,0.0001787,120]
[333774285,1722477196399,191.0,0.0001789,120]
[333774286,1722477197864,191.0,0.0001788,120]
[333774287,1722477198058,191.0,0.0001789,120]
[333774288,1722477198396,195.81,0.0001788,120]
[333774323,1722478232585,-681.0,8.218e-05,2]
[333774324,1722478232595,-976.99719009,8.219e-05,2]
[333774325,1722478232604,-1036.84,8.219e-05,2]
[333774326,1722478232614,-191.70819556,8.219e-05,2]
[333774327,1722478232625,-449.21180444,8.219e-05,2]
[333774328,1722478232635,-167.40419556,9.683e-05,2]
[333774329,1722478232647,-399.12662878,9.683e-05,2]
[333774330,1722478232659,-145.46917566,9.683e-05,2]
[333774331,1722478232668,-155.89,9.885e-05,2]
[333774332,1722478232677,-150.0,9.888e-05,2]
[333774333,1722478232687,-152.80833006,9.888e-05,2]
[333774334,1722478232696,-151.01477266,9.888e-05,2]
[333774335,1722478232706,-250.0,9.92e-05,2]
[333774336,1722478232715,-288.0,9.929e-05,2]
[333774337,1722478232725,-244.11,9.946e-05,2]
[333774338,1722478232734,-640.92,0.00010046,2]
[333774339,1722478232743,-300.0,0.00010373,2]
[333774340,1722478232753,-4967.89427475,0.00010374,2]
[333774341,1722478232764,-343.24172525,0.00010374,2]
[333774342,1722478232775,-1036.84,0.00010473,2]
[333774362,1722478232787,-700.0,0.000105,3]
[333774363,1722478233173,-417.32376152,0.00010548,2]
[333774364,1722478233186,-11.53623848,0.00010548,2]
[333774365,1722478233195,-700.06376152,0.000106,3]
[333774366,1722478233206,-279.69657276,0.000106,3]
[333774367,1722478233218,-420.23966572,0.000106,3]
[333774368,1722478233227,-242.30868045,0.00010623,2]
[333774369,1722478233365,-408.39514155,0.00010623,2]
[333774370,1722478233375,-164.888057,0.00010623,2]
[333774371,1722478233385,-590.880481,0.00010623,2]
[333774372,1722478233394,-181.721876,0.00010623,2]
[333774373,1722478233404,-310.45592551,0.00010623,2]
[333774374,1722478233416,-145.63335649,0.00010623,2]
[333774375,1722478233427,-2200.0,0.000107,3]
[333774376,1722478233437,-650.703822,0.00010756,2]
[333774377,1722478233447,-590.880481,0.00010756,2]
[333774378,1722478233457,-456.089282,0.00010756,2]
[333774379,1722478233467,-2900.0,0.000108,3]
[333774380,1722478233477,-515.13215398,0.00010875,2]
[333774381,1722478233489,-259.52364602,0.00010875,2]
[333774382,1722478233498,-650.703822,0.00010888,2]
[333774383,1722478233507,-590.880481,0.00010888,2]
[333774384,1722478233517,-456.089282,0.00010888,2]
[333774385,1722478233526,-200.0,0.0001089,2]
[333774386,1722478233535,-712.0,0.00010894,2]
[333774387,1722478233545,-550.68078723,0.00010899,2]
[333774388,1722478233554,-152.29287976,0.00010899,2]
[333774389,1722478233563,-150.0,0.00010899,2]
[333774390,1722478233573,-834.46382886,0.000109,2]
[333774391,1722478233583,-1922.4033,0.000109,2]
[333774392,1722478233592,-57.81937093,0.000109,2]
[333774393,1722478233603,-350.0,0.000109,2]
[333774394,1722478233615,-4670.58140367,0.000109,2]
[333774395,1722478233626,-461.63513756,0.000109,2]
[333774396,1722478233637,-522.58091288,0.000109,2]
[333774397,1722478233649,-322.71067496,0.000109,2]
[333774398,1722478233658,-11.79679766,0.000109,2]
[333774399,1722478233669,-335.92939992,0.000109,2]
[333774400,1722478233681,-348.89010204,0.000109,2]
[333774403,1722478238384,-350.27880038,0.000109,2]
[333774405,1722478238395,-550.99316949,0.000109,2]
[333774406,1722478238407,-449.00683051,0.000109,2]
[333774407,1722478238417,-237.3566,0.000109,2]
[333774408,1722478238426,-163.42806174,0.000109,2]
[333774409,1722478238436,-177.73863604,0.000109,2]
[333774410,1722478238446,-164.94588568,0.000109,2]
[333774411,1722478238456,-807.03002603,0.000109,3]
[333774412,1722478238468,-480.599973,0.000109,3]
[333774413,1722478238481,-2312.37000097,0.000109,3]
[333774414,1722478238490,-1328.83403623,0.000109,2]
[333774415,1722478238503,-6171.16596377,0.000109,2]
[333774416,1722478238513,-10828.05023878,0.000109,2]
[333774417,1722478238522,-176.21586754,0.000109,2]
[333774418,1722478238532,-171.23761401,0.000109,2]
[333774419,1722478238541,-500.0,0.00010911,2]
[333774420,1722478238551,-500.0,0.00010912,2]
[333774421,1722478238560,-5800.0,0.00010932,2]
[333774422,1722478238569,-5800.0,0.00010941,2]
[333774423,1722478238579,-2476.3303159,0.00010949,2]
[333774425,1722478239793,-430.68588754,0.00010949,2]
[333774426,1722478239805,-1118.414523,0.00010949,2]
[333774427,1722478239817,-1283.53496752,0.00010949,2]
[333774428,1722478239830,-491.03430604,0.00010949,2]
[333774429,1722478239840,-5800.0,0.00010958,2]
[333774430,1722478239850,-200.0,0.00010959,2]
[333774431,1722478239860,-250.0,0.00010959,2]
[333774432,1722478239870,-150.0,0.00010959,2]
[333774433,1722478239879,-150.0,0.0001096,2]
[333774434,1722478239889,-150.358,0.0001096,2]
[333774435,1722478239899,-150.074,0.0001096,2]
[333774436,1722478239908,-150.0,0.0001096,2]
[333774437,1722478239918,-622.878,0.0001096,2]
[333774438,1722478239929,-1925.0,0.0001096,2]
[333774439,1722478239939,-1255.0,0.0001096,2]
[333774440,1722478239948,-1582.0,0.0001096,2]
[333774441,1722478239958,-1672.555,0.0001096,2]
[333774442,1722478239968,-811.0,0.0001096,2]
[333774443,1722478239977,-451.181,0.0001096,2]
[333774444,1722478239987,-1892.0,0.0001096,2]
[333774445,1722478239997,-550.0,0.0001096,2]
[333774446,1722478240006,-3286.232,0.0001096,2]
[333774447,1722478240016,-1370.0,0.0001096,2]
[333774448,1722478240025,-150.0,0.0001096,2]
[333774449,1722478240035,-1203.0,0.0001096,2]
[333774450,1722478240045,-5126.0,0.0001096,2]
[333774451,1722478240054,-433.715,0.0001096,2]
[333774452,1722478240064,-500.0,0.00010965,2]
[333774453,1722478240073,-5800.0,0.00010966,2]
[333774454,1722478240083,-500.0,0.00010974,2]
[333774455,1722478240092,-5800.0,0.00010975,2]
[333774456,1722478240102,-500.0,0.00010982,2]
[333774457,1722478240111,-5800.0,0.00010983,2]
[333774458,1722478240121,-157.66652925,0.00010986,2]
[333774459,1722478240131,-172.48,0.0001099,2]
[333774460,1722478240140,-172.48,0.0001099,2]
[333774461,1722478240149,-500.0,0.00010991,2]
[333774462,1722478240159,-5800.0,0.00010992,2]
[333774463,1722478240169,-164.68926633,0.00010997,2]
[333774464,1722478240178,-52137.3507762,0.00010997,2]
[333774465,1722478240188,-2956.6693769,0.00010997,2]
[333774466,1722478240198,-761.8504692,0.00010997,2]
[333774467,1722478240207,-652.40535848,0.00010997,2]
[333774468,1722478240216,-545.3599668,0.00010997,2]
[333774469,1722478240226,-550.68078721,0.00010998,2]
[333774470,1722478240236,-1590.4754,0.00010999,2]
[333774471,1722478240245,-765.0,0.00011,2]
[333774472,1722478240254,-169469.02335506,0.00011,2]
[333774473,1722478240351,-504.3514221,0.00011,2]
[333774474,1722478240362,-2302.89454731,0.00011,2]
[333774475,1722478240375,-2600.19997035,0.00011,2]
[333774476,1722478240386,-1284.325,0.00011,2]
[333774477,1722478240397,-540.19979799,0.00011,2]
[333774483,1722478240979,-6261.11776499,0.00011,2]
[333774484,1722478240990,-2000.0,0.00011,2]
[333774485,1722478241003,-963.963,0.00011,2]
[333774486,1722478241014,-18527.74681413,0.00011,2]
[333774487,1722478241027,-44321.19809144,0.00011,2]
[333774488,1722478241080,-6254.78533247,0.00011,2]
[333774489,1722478241092,-284.52359772,0.00011,2]
[333774490,1722478241103,-3108.12795836,0.00011,2]
[333774491,1722478241115,-329.8278697,0.00011,2]
[333774492,1722478241126,-814.74037197,0.00011,2]
[333774493,1722478241137,-1139.11643078,0.00011,2]
[333774494,1722478241148,-313.5436304,0.00011,2]
[333774495,1722478241160,-6457.2,0.00011,2]
[333774496,1722478241171,-4495.27000001,0.00011,2]
[333774497,1722478241183,-889.96501795,0.00011,2]
[333774498,1722478241195,-1577.86863335,0.00011,2]
[333774499,1722478241206,-2581.58,0.00011,2]
[333774500,1722478241308,-661.0,0.00011,2]
[333774501,1722478241319,-26120.14264098,0.00011,2]
[333774502,1722478241330,-12493.89333344,0.00011,2]
[333774503,1722478241342,-3255.0,0.00011,2]
[333774504,1722478241353,-3541.55446428,0.00011,2]
[333774505,1722478241365,-2086.73037456,0.00011,2]
[333774506,1722478241377,-1618.10000002,0.00011,2]
[333774507,1722478243413,-12973.95024652,0.00011,2]
[333774510,1722478243426,-78902.69327589,0.00011,2]
[333774512,1722478243438,-2378.5307728,0.00011,2]
[333774514,1722478243884,-258.27518633,0.00011,2]
[333774516,1722478243896,-2389.13768133,0.00011,2]
[333774518,1722478243907,-2493.70484852,0.00011,2]
[333774520,1722478243919,-10509.1644,0.00011,2]
[333774521,1722478243930,-500.0,0.00011,2]
[333774522,1722478243942,-507.53028692,0.00011,2]
[333774523,1722478243954,-959.5,0.00011,2]
[333774524,1722478243966,-357.69482547,0.00011,2]
[333774525,1722478244060,-419.52180165,0.00011,2]
[333774534,1722478246566,-2570.41893268,0.00011,2]
[333774535,1722478246578,-487.94323696,0.00011,2]
[333774536,1722478246589,-3217.02179562,0.00011,2]
[333774537,1722478246600,-514.3318572,0.00011,2]
[333774538,1722478246612,-148585.24259142,0.00011,2]
[333774539,1722478246623,-1604.0,0.00011,2]
[333774540,1722478246651,-641.7,0.00011,2]
[333774541,1722478246850,-550.596946,0.00010623,2]
[333774542,1722478246861,-11238.85709294,0.00011,2]
[333774543,1722478246876,-3166.85093151,0.00011,2]
[333774544,1722478246887,-362.68407531,0.00011,2]
[333774545,1722478246904,-2515.79092737,0.00011,2]
[333774546,1722478246916,-1188.35,0.00011,2]
[333774959,1722478871989,1000.0,0.00025,60]
[333774960,1722478872446,1000.0,0.00025,60]
[333774961,1722478872955,1000.0,0.00025,60]
[333774962,1722478873408,1000.0,0.00025,60]
[333774963,1722478873994,1000.0,0.00025,60]
[333774964,1722478874240,1000.0,0.00025,60]
[333774965,1722478875531,1000.0,0.00025,60]
[333774966,1722478875685,1000.0,0.00025,60]
[333774967,1722478898367,394.41322722,0.00025,60]
[333775018,1722479431982,-1030.89,8.219e-05,2]
[333775019,1722479431992,-320.46,8.219e-05,2]
[333775020,1722479432001,-1900.13,9.606e-05,2]
[333775021,1722479432010,-250.0,9.612e-05,2]
[333775022,1722479432020,-16618.10120969,9.681e-05,2]
[333775023,1722479432030,-195.28,9.681e-05,2]
[333775024,1722479432039,-26332.8,9.736e-05,2]
[333775026,1722479432050,-230.4,9.78e-05,2]
[333775027,1722479432059,-160.11,9.8e-05,2]
[333775029,1722479432068,-886.03,9.839e-05,2]
[333775031,1722479432077,-15325.06,9.879e-05,2]
[333775032,1722479432087,-189.73291779,9.888e-05,2]
[333775033,1722479432096,-633.00587252,9.908e-05,2]
[333775034,1722479432107,-331.77046569,9.908e-05,2]
[333775035,1722479432530,-5233.56366179,9.908e-05,2]
[333775036,1722479432539,-150.0,9.914e-05,2]
[333775037,1722479432549,-200.0,9.915e-05,2]
[333775038,1722479432558,-769.6,9.915e-05,2]
[333775039,1722479432567,-320.46,0.00010046,2]
[333775040,1722479432577,-1030.89,0.00010466,2]
[333775041,1722479432586,-887.761339,0.00010623,2]
[333775042,1722479432595,-163.983566,0.00010623,2]
[333775043,1722479432604,-181.117558,0.00010623,2]
[333775044,1722479432613,-550.596946,0.00010756,2]
[333775045,1722479432623,-887.761339,0.00010756,2]
[333775046,1722479432632,-1452.47436079,0.0001078,2]
[333775047,1722479432642,-2500.0,0.00010799,2]
[333775048,1722479432652,-1452.4743608,0.000108,2]
[333775049,1722479432662,-1725.4625,0.000108,2]
[333775050,1722479432671,-370.0665,0.000108,2]
[333775051,1722479432681,-3247.1853,0.000108,2]
[333775052,1722479432691,-22341.2091,0.000108,2]
[333775053,1722479432702,-194.83867798,0.000108,2]
[333775054,1722479432714,-2204.86394108,0.000108,2]
[333775055,1722479432724,-7500.0,0.0001086,2]
[333775056,1722479432733,-254802.52674981,0.0001088,2]
[333775057,1722479432743,-550.596946,0.00010888,2]
[333775058,1722479432754,-887.761339,0.00010888,2]
[333775059,1722479432764,-195.28,0.00010891,2]
[333775060,1722479432774,-164.94588566,0.00010895,2]
[333775061,1722479432783,-41942.7151,0.00010897,2]
[333775062,1722479432792,-4212.2766,0.00010897,2]
[333775063,1722479432801,-1328.2709,0.00010897,2]
[333775064,1722479432811,-40417.6158,0.00010897,2]
[333775065,1722479432822,-102926.58013971,0.00010899,2]
[333775066,1722479432832,-4230.26153306,0.00010899,2]
[333775067,1722479432842,-208646.8033,0.000109,2]
[333775068,1722479432852,-495.087307,0.000109,2]
[333775069,1722479432861,-1000.0,0.000109,2]
[333775070,1722479432870,-163.42806171,0.000109,2]
[333775071,1722479432879,-194.83867798,0.000109,2]
[333775072,1722479432889,-172.49,0.000109,2]
[333775073,1722479432898,-164.94588566,0.00010904,2]
[333775074,1722479432907,-255.0,0.00010906,2]
[333775075,1722479432916,-4230.26153304,0.00010908,2]
[333775076,1722479432926,-164.94588566,0.00010912,2]
[333775077,1722479432935,-164.94588566,0.00010921,2]
[333775078,1722479432944,-499.03,0.00010959,2]
[333775079,1722479432954,-250.0,0.00010959,2]
[333775080,1722479432963,-150.0,0.00010959,2]
[333775081,1722479432972,-769.96,0.00010959,2]
[333775082,1722479432982,-1892.0,0.0001096,2]
[333775083,1722479432991,-550.0,0.0001096,2]
[333775084,1722479433000,-152.675,0.0001096,2]
[333775085,1722479433010,-150.0,0.0001096,2]
[333775086,1722479433019,-1434.378,0.0001096,2]
[333775087,1722479433028,-5126.0,0.0001096,2]
[333775088,1722479433038,-1255.0,0.0001096,2]
[333775089,1722479433048,-1582.0,0.0001096,2]
[333775090,1722479433057,-621.0,0.0001096,2]
[333775091,1722479433067,-1203.0,0.0001096,2]
[333775092,1722479433077,-2000.0,0.0001099,2]
[333775093,1722479433086,-250000.0,0.0001099,2]
[333775094,1722479433096,-172.49,0.0001099,2]
[333775095,1722479433106,-172.49,0.0001099,2]
[333775096,1722479433116,-14279.0972674,0.00010995,2]
[333775097,1722479433126,-610.4039499,0.00010995,2]
[333775098,1722479433141,-401.2666255,0.00010995,2]
[333775099,1722479433151,-474.0732643,0.00010995,2]
[333775100,1722479433160,-2316.07774,0.00010995,2]
[333775101,1722479433169,-27616.0266855,0.00010998,2]
[333775102,1722479433181,-2000.0,0.00010999,2]
[333775103,1722479433190,-2000.0,0.00010999,2]
[333775104,1722479433200,-2000.0,0.00010999,2]
[333775105,1722479433211,-2000.0,0.00010999,2]
[333775106,1722479433221,-2000.0,0.00010999,2]
[333775107,1722479433230,-1304.84896795,0.00010999,2]
[333775108,1722479433239,-2257.82866742,0.00010999,2]
[333775109,1722479433249,-2000.0,0.00010999,2]
[333775110,1722479433259,-902.0,0.00011,2]
[333775111,1722479433269,-30396.33300071,0.00011,2]
[333775112,1722479433282,-4776.29766075,0.00011,2]
[333775113,1722479433294,-1075.43,0.00011,2]
[333775114,1722479433306,-270.03107511,0.00011,2]
[333775115,1722479433406,-733069.15723828,0.00011,2]
[333775116,1722479433418,-66867.49001581,0.00011,2]
[333775120,1722479437515,-446.339,0.0001096,2]
[333775121,1722479437525,-28598.52542533,0.00011,2]
[333775124,1722479438075,-2996.55847982,0.00011,2]
[333775127,1722479438090,-19716.01369718,0.00011,2]
[333775128,1722479438104,-1437.652988,0.00011,2]
[333775129,1722479438117,-2500.0,0.00011,2]
[333775130,1722479438131,-255.315,0.00011,2]
[333775139,1722479439805,-2965.60217,0.00011,2]
[333775140,1722479439818,-16040.5,0.00011,2]
[333775141,1722479439830,-825.15284921,0.00011,2]
[333775142,1722479439969,-1608.52092669,0.00011,2]
[333775143,1722479439983,-2283.63858508,0.00011,2]
[333775144,1722479439995,-1114.04420081,0.00011,2]
[333775148,1722479440192,-7021.87,0.00011,2]
[333775388,1722479442880,-2500.0,0.0001078,2]
[333775389,1722479442890,-450.0,0.0001096,2]
[333775390,1722479442900,-3368.80328979,0.00011,2]
[333775391,1722479442912,-3201.0,0.00011,2]
[333775392,1722479442924,-4265.75,0.00011,2]
[333775393,1722479443396,-422.14733506,0.00011,2]
[333775394,1722479443469,-500.0,0.00011,2]
[333775395,1722479443480,-11688.02214291,0.00011,2]
[333775396,1722479443491,-17235.77250784,0.00011,2]
[333775397,1722479443530,-9163.12433374,0.00011,2]
[333775401,1722479447166,-2529.21475138,0.00010415,2]